fUSD/lending_fUSD_20240818
["ID","MTS","AMOUNT","RATE_DAILY","PERIOD"]
[335184722,1723948232941,-150.0,0.00010081,2]
[335184723,1723948232951,-348.41020976,0.00010087,2]
[335184724,1723948232960,-150.0,0.00010087,2]
[335184725,1723948232970,-500.0,0.0001009,2]
[335184726,1723948232982,-150.0,0.00010091,2]
[335184727,1723948232992,-150.0,0.00010096,2]
[335184728,1723948233001,-348.75946209,0.00010097,2]
[335184729,1723948233010,-348.41020976,0.00010099,2]
[335184730,1723948233019,-150.0,0.00010102,2]
[335184731,1723948233029,-150.0,0.00010107,2]
[335184732,1723948233038,-348.41020976,0.0001011,2]
[335184733,1723948233047,-150.0,0.0001011,2]
[335184734,1723948233056,-150.0,0.00010116,2]
[335184735,1723948233065,-348.41020976,0.00010121,2]
[335184736,1723948233075,-150.0,0.00010125,2]
[335184737,1723948233084,-150.0,0.0001013,2]
[335184738,1723948233093,-348.41020976,0.00010132,2]
[335184739,1723948233102,-150.0,0.00010132,2]
[335184740,1723948233112,-150.0,0.0001014,2]
[335184741,1723948233121,-348.41020976,0.00010143,2]
[335184742,1723948233132,-150.0,0.00010144,2]
[335184743,1723948233141,-348.41020976,0.00010154,2]
[335184744,1723948233150,-150.0,0.00010155,2]
[335184745,1723948233159,-150.0,0.00010159,2]
[335184746,1723948233168,-150.0,0.00010162,2]
[335184747,1723948233178,-348.41020976,0.00010165,2]
[335184748,1723948233187,-150.0,0.0001017,2]
[335184749,1723948233196,-150.0,0.00010173,2]
[335184750,1723948233205,-150.0,0.00010173,2]
[335184751,1723948233214,-348.41020976,0.00010176,2]
[335184752,1723948233224,-150.0,0.00010185,2]
[335184753,1723948233233,-348.41020976,0.00010187,2]
[335184754,1723948233242,-150.0,0.00010187,2]
[335184755,1723948233251,-348.41020976,0.00010198,2]
[335184756,1723948233260,-150.0,0.00010199,2]
[335184757,1723948233269,-150.0,0.00010202,2]
[335184758,1723948233279,-150.0,0.00010202,2]
[335184759,1723948233288,-348.41020976,0.00010209,2]
[335184760,1723948233298,-150.0,0.00010213,2]
[335184761,1723948233307,-150.0,0.00010214,2]
[335184762,1723948233316,-150.0,0.00010216,2]
[335184763,1723948233325,-150.0,0.00010217,2]
[335184764,1723948233335,-348.41020976,0.00010221,2]
[335184765,1723948233344,-150.0,0.00010229,2]
[335184766,1723948233353,-150.0,0.0001023,2]
[335184767,1723948233362,-348.41020976,0.00010232,2]
[335184768,1723948233371,-348.41020976,0.00010243,2]
[335184769,1723948233382,-150.0,0.00010244,2]
[335184770,1723948233391,-150.0,0.00010244,2]
[335184771,1723948233400,-348.41020976,0.00010254,2]
[335184772,1723948233410,-150.0,0.00010254,2]
[335184773,1723948233419,-150.0,0.00010259,2]
[335184774,1723948233428,-150.0,0.00010259,2]
[335184775,1723948233438,-348.41020976,0.00010265,2]
[335184776,1723948233447,-150.0,0.00010273,2]
[335184777,1723948233456,-150.0,0.00010274,2]
[335184778,1723948233466,-348.41020976,0.00010276,2]
[335184779,1723948233475,-348.41020976,0.00010287,2]
[335184780,1723948233484,-150.0,0.00010287,2]
[335184781,1723948233494,-150.0,0.00010289,2]
[335184782,1723948233503,-150.0,0.00010295,2]
[335184783,1723948233512,-348.41020976,0.00010298,2]
[335184784,1723948233521,-150.0,0.00010301,2]
[335184785,1723948233531,-150.0,0.00010303,2]
[335184786,1723948233540,-348.41020976,0.00010309,2]
[335184787,1723948233549,-150.0,0.00010316,2]
[335184788,1723948233558,-150.0,0.00010318,2]
[335184789,1723948233567,-348.41020976,0.0001032,2]
[335184790,1723948233576,-1000.0,0.00010326,2]
[335184791,1723948233585,-89.78435222,0.00010327,2]
[335184792,1723948233598,-60.21564778,0.00010327,2]
[335184793,1723948233607,-150.0,0.0001033,2]
[335184794,1723948233617,-500.0,0.00010331,2]
[335184795,1723948233626,-348.41020976,0.00010332,2]
[335184796,1723948233636,-150.0,0.00010333,2]
[335184797,1723948233645,-150.0,0.00010335,2]
[335184798,1723948233654,-348.41020976,0.00010343,2]
[335184799,1723948233664,-150.0,0.00010344,2]
[335184800,1723948233673,-150.0,0.00010348,2]
[335184801,1723948233683,-348.41020976,0.00010354,2]
[335184802,1723948233693,-150.0,0.00010359,2]
[335184803,1723948233702,-150.0,0.00010359,2]
[335184804,1723948233712,-150.0,0.00010363,2]
[335184805,1723948233722,-348.41020976,0.00010365,2]
[335184806,1723948233731,-150.0,0.00010373,2]
[335184807,1723948233741,-348.41020976,0.00010376,2]
[335184808,1723948233750,-150.0,0.00010376,2]
[335184809,1723948233759,-150.0,0.00010378,2]
[335184810,1723948233768,-348.41020976,0.00010387,2]
[335184811,1723948233777,-150.0,0.00010387,2]
[335184812,1723948233786,-150.0,0.00010392,2]
[335184813,1723948233795,-348.41020976,0.00010398,2]
[335184814,1723948233804,-150.0,0.00010401,2]
[335184815,1723948233814,-150.0,0.00010407,2]
[335184816,1723948233823,-348.41020976,0.00010409,2]
[335184817,1723948233832,-150.0,0.00010416,2]
[335184818,1723948233842,-150.0,0.00010417,2]
[335184819,1723948233851,-348.41020976,0.0001042,2]
[335184820,1723948233860,-150.0,0.00010422,2]
[335184821,1723948233870,-150.0,0.0001043,2]
[335184822,1723948233880,-348.41020976,0.00010431,2]
[335184823,1723948233890,-150.0,0.00010437,2]
[335184824,1723948233899,-150.0,0.00010437,2]
[335184825,1723948233908,-150.0,0.00010437,2]
[335184826,1723948233917,-150.0,0.00010437,2]
[335184827,1723948233926,-150.0,0.00010437,2]
[335184828,1723948233936,-158.31279167,0.00010438,2]
[335184829,1723948233945,-348.41020976,0.00010443,2]
[335184830,1723948233954,-150.0,0.00010444,2]
[335184831,1723948233963,-491.1,0.00010449,2]
[335184832,1723948233973,-150.0,0.00010452,2]
[335184833,1723948233984,-348.41020976,0.00010454,2]
[335184834,1723948233994,-150.0,0.00010457,2]
[335184835,1723948234003,-150.0,0.00010458,2]
[335184836,1723948234012,-348.41020976,0.00010465,2]
[335184837,1723948234022,-150.0,0.00010467,2]
[335184838,1723948234033,-150.0,0.00010473,2]
[335184839,1723948234043,-348.41020976,0.00010476,2]
[335184840,1723948234053,-150.0,0.00010482,2]
[335184841,1723948234063,-348.41020976,0.00010487,2]
[335184842,1723948234072,-150.0,0.00010487,2]
[335184843,1723948234082,-150.0,0.00010496,2]
[335184844,1723948234092,-348.41020976,0.00010498,2]
[335184845,1723948234101,-150.0,0.00010498,2]
[335184846,1723948234110,-668.78963171,0.000105,2]
[335184847,1723948234121,-909.3594811,0.000105,2]
[335184848,1723948234138,-1832.42609404,0.000105,2]
[335184849,1723948234147,-150.0,0.00010501,2]
[335184850,1723948234156,-500.0,0.00010509,2]
[335184851,1723948234166,-348.41020976,0.00010509,2]
[335184852,1723948234175,-150.0,0.00010511,2]
[335184853,1723948234184,-150.0,0.00010515,2]
[335184854,1723948234193,-150.0,0.00010515,2]
[335184855,1723948234202,-348.41020976,0.0001052,2]
[335184856,1723948234211,-150.0,0.00010526,2]
[335184857,1723948234221,-150.0,0.0001053,2]
[335184858,1723948234230,-500.0,0.00010531,2]
[335184859,1723948234239,-348.41020976,0.00010531,2]
[335184860,1723948234248,-150.0,0.00010539,2]
[335184861,1723948234258,-150.0,0.00010541,2]
[335184862,1723948234267,-348.41020976,0.00010542,2]
[335184863,1723948234277,-150.0,0.00010544,2]
[335184864,1723948234286,-150.0,0.00010547,2]
[335184865,1723948234295,-348.41020976,0.00010554,2]
[335184866,1723948234305,-150.0,0.00010556,2]
[335184867,1723948234314,-150.0,0.00010558,2]
[335184868,1723948234323,-348.41020976,0.00010565,2]
[335184869,1723948234332,-150.0,0.00010571,2]
[335184870,1723948234341,-150.0,0.00010573,2]
[335184871,1723948234350,-348.41020976,0.00010576,2]
[335184872,1723948234359,-150.0,0.00010579,2]
[335184873,1723948234369,-150.0,0.00010585,2]
[335184874,1723948234378,-348.41020976,0.00010587,2]
[335184875,1723948234387,-150.0,0.00010587,2]
[335184876,1723948234396,-500.0,0.00010594,2]
[335184877,1723948234405,-348.41020976,0.00010598,2]
[335184878,1723948234415,-150.0,0.000106,2]
[335184879,1723948234425,-150.0,0.00010601,2]
[335184880,1723948234434,-348.41020976,0.00010609,2]
[335184881,1723948234443,-499.99,0.00010613,2]
[335184882,1723948234452,-6429.2,0.00010614,2]
[335184883,1723948234462,-150.0,0.00010615,2]
[335184884,1723948234471,-150.0,0.00010615,2]
[335184885,1723948234481,-348.41020976,0.0001062,2]
[335184886,1723948234490,-150.0,0.0001062,2]
[335184887,1723948234499,-150.0,0.0001063,2]
[335184888,1723948234509,-150.0,0.0001063,2]
[335184889,1723948234518,-348.41020976,0.00010631,2]
[335184890,1723948234528,-348.41020976,0.00010642,2]
[335184891,1723948234537,-150.0,0.00010644,2]
[335184892,1723948234546,-150.0,0.00010645,2]
[335184893,1723948234555,-348.41020976,0.00010653,2]
[335184894,1723948234564,-150.0,0.00010657,2]
[335184895,1723948234573,-150.0,0.00010658,2]
[335184896,1723948234582,-150.0,0.0001066,2]
[335184897,1723948234592,-150.0,0.00010661,2]
[335184898,1723948234601,-348.41020976,0.00010664,2]
[335184899,1723948234610,-150.0,0.00010672,2]
[335184900,1723948234620,-150.0,0.00010672,2]
[335184901,1723948234629,-150.0,0.00010675,2]
[335184902,1723948234638,-348.41020976,0.00010676,2]
[335184903,1723948234648,-500.0,0.00010682,2]
[335184904,1723948234657,-348.41020976,0.00010687,2]
[335184905,1723948234666,-150.0,0.00010687,2]
[335184906,1723948234675,-150.0,0.00010689,2]
[335184907,1723948234684,-348.41020976,0.00010698,2]
[335184908,1723948234694,-150.0,0.00010701,2]
[335184909,1723948234705,-150.0,0.00010701,2]
[335184910,1723948234715,-150.0,0.00010704,2]
[335184911,1723948234724,-348.41020976,0.00010709,2]
[335184912,1723948234733,-150.0,0.00010712,2]
[335184913,1723948234744,-150.0,0.00010715,2]
[335184914,1723948234753,-150.0,0.00010719,2]
[335184915,1723948234763,-348.41020976,0.0001072,2]
[335184916,1723948234772,-150.0,0.00010727,2]
[335184917,1723948234781,-150.0,0.00010729,2]
[335184918,1723948234791,-348.41020976,0.00010731,2]
[335184919,1723948234800,-150.0,0.00010734,2]
[335184920,1723948234809,-150.0,0.00010736,2]
[335184921,1723948234818,-150.0,0.00010741,2]
[335184922,1723948234827,-150.0,0.00010741,2]
[335184923,1723948234836,-348.41020976,0.00010742,2]
[335184924,1723948234845,-150.0,0.00010742,2]
[335184925,1723948234854,-150.0,0.00010743,2]
[335184926,1723948234863,-150.0,0.00010744,2]
[335184927,1723948234872,-150.0,0.00010749,2]
[335184928,1723948234882,-150.0,0.00010751,2]
[335184929,1723948234891,-150.0,0.00010752,2]
[335184930,1723948234901,-150.0,0.00010753,2]
[335184931,1723948234910,-150.0,0.00010753,2]
[335184932,1723948234919,-150.0,0.00010753,2]
[335184933,1723948234927,-348.41020976,0.00010753,2]
[335184934,1723948234937,-150.0,0.00010754,2]
[335184935,1723948234946,-150.0,0.00010756,2]
[335184936,1723948234956,-150.0,0.00010757,2]
[335184937,1723948234966,-150.0,0.00010758,2]
[335184938,1723948234977,-150.0,0.00010759,2]
[335184939,1723948234991,-500.0,0.00010761,2]
[335184940,1723948235001,-150.0,0.00010763,2]
[335184941,1723948235012,-150.0,0.00010764,2]
[335184942,1723948235023,-348.41020976,0.00010764,2]
[335184943,1723948235040,-150.0,0.00010767,2]
[335184944,1723948235050,-150.0,0.00010767,2]
[335184945,1723948235059,-150.0,0.00010772,2]
[335184946,1723948235070,-150.0,0.00010772,2]
[335184947,1723948235082,-150.0,0.00010775,2]
[335184948,1723948235091,-348.41020976,0.00010775,2]
[335184949,1723948235102,-150.0,0.00010776,2]
[335184950,1723948235113,-150.0,0.00010777,2]
[335184951,1723948235123,-150.0,0.00010778,2]
[335184952,1723948235132,-150.0,0.0001078,2]
[335184953,1723948235141,-150.0,0.00010782,2]
[335184954,1723948235152,-150.0,0.00010783,2]
[335184955,1723948235165,-150.0,0.00010783,2]
[335184956,1723948235174,-150.0,0.00010785,2]
[335184957,1723948235185,-348.41020976,0.00010787,2]
[335184958,1723948235194,-150.0,0.00010787,2]
[335184959,1723948235204,-155.0,0.0001079,2]
[335184960,1723948235214,-150.0,0.0001079,2]
[335184961,1723948235223,-150.0,0.0001079,2]
[335184962,1723948235234,-150.0,0.0001079,2]
[335184963,1723948235245,-778.593,0.0001079,2]
[335184964,1723948235254,-150.0,0.00010793,2]
[335184965,1723948235263,-150.0,0.00010793,2]
[335184966,1723948235273,-420.7233,0.00010794,2]
[335184967,1723948235283,-115391.5053,0.00010794,2]
[335184968,1723948235292,-8180.6491,0.00010794,2]
[335184969,1723948235301,-150.0,0.00010797,2]
[335184970,1723948235310,-150.0,0.00010797,2]
[335184971,1723948235320,-348.41020976,0.00010798,2]
[335184972,1723948235330,-9852.61197155,0.000108,2]
[335184973,1723948235341,-150.0,0.00010801,2]
[335184974,1723948235351,-150.0,0.00010803,2]
[335184975,1723948235362,-3726.0,0.00010805,2]
[335184976,1723948235372,-150.0,0.00010806,2]
[335184977,1723948235386,-150.0,0.00010806,2]
[335184978,1723948235394,-150.0,0.00010808,2]
[335184979,1723948235403,-348.41020976,0.00010809,2]
[335184980,1723948235412,-150.0,0.00010812,2]
[335184981,1723948235421,-150.0,0.00010814,2]
[335184982,1723948235432,-150.0,0.00010815,2]
[335184983,1723948235441,-150.0,0.00010815,2]
[335184984,1723948235450,-150.0,0.00010815,2]
[335184985,1723948235459,-150.0,0.00010818,2]
[335184986,1723948235468,-348.41020976,0.0001082,2]
[335184987,1723948235477,-150.0,0.00010823,2]
[335184988,1723948235487,-150.0,0.00010824,2]
[335184989,1723948235496,-150.0,0.00010828,2]
[335184990,1723948235505,-150.0,0.00010829,2]
[335184991,1723948235514,-150.0,0.00010829,2]
[335184992,1723948235524,-150.0,0.0001083,2]
[335184993,1723948235533,-348.41020976,0.00010831,2]
[335184994,1723948235542,-150.0,0.00010833,2]
[335184995,1723948235551,-755.84837928,0.00010835,2]
[335184996,1723948235561,-150.0,0.00010838,2]
[335184997,1723948235570,-150.0,0.00010839,2]
[335184998,1723948235579,-150.0,0.00010841,2]
[335184999,1723948235588,-348.41020976,0.00010842,2]
[335185000,1723948235597,-150.0,0.00010843,2]
[335185001,1723948235607,-150.0,0.00010844,2]
[335185002,1723948235616,-150.0,0.00010845,2]
[335185003,1723948235628,-150.0,0.00010846,2]
[335185004,1723948235638,-150.0,0.00010853,2]
[335185005,1723948235648,-348.41020976,0.00010853,2]
[335185006,1723948235658,-150.0,0.00010856,2]
[335185007,1723948235667,-150.0,0.00010858,2]
[335185008,1723948235677,-150.0,0.00010861,2]
[335185009,1723948235833,-236.72785346,0.00010862,2]
[335185010,1723948235843,-150.0,0.00010863,2]
[335185011,1723948235855,-150.0,0.00010864,2]
[335185012,1723948235865,-150.0,0.00010864,2]
[335185013,1723948235874,-348.41020976,0.00010864,2]
[335185014,1723948235883,-150.0,0.00010864,2]
[335185015,1723948235892,-150.0,0.00010867,2]
[335185016,1723948235902,-150.0,0.00010868,2]
[335185017,1723948235912,-150.0,0.00010869,2]
[335185018,1723948235923,-150.0,0.00010871,2]
[335185019,1723948235933,-150.0,0.00010871,2]
[335185020,1723948235944,-150.0,0.00010872,2]
[335185021,1723948235954,-150.0,0.00010873,2]
[335185022,1723948235964,-348.41020976,0.00010875,2]
[335185023,1723948235974,-150.0,0.00010876,2]
[335185024,1723948235987,-150.0,0.00010879,2]
[335185025,1723948235996,-150.0,0.00010881,2]
[335185026,1723948236006,-150.0,0.00010881,2]
[335185027,1723948236015,-150.0,0.00010882,2]
[335185028,1723948236026,-150.0,0.00010885,2]
[335185029,1723948236036,-150.0,0.00010886,2]
[335185030,1723948236045,-348.41020976,0.00010886,2]
[335185031,1723948236054,-150.0,0.00010886,2]
[335185032,1723948236064,-150.0,0.00010887,2]
[335185033,1723948236074,-164.68210132,0.00010888,2]
[335185034,1723948236084,-150.0,0.00010889,2]
[335185035,1723948236093,-150.0,0.00010889,2]
[335185036,1723948236102,-342.50855,0.0001089,2]
[335185037,1723948236112,-155.0,0.0001089,2]
[335185038,1723948236122,-206.26892827,0.0001089,2]
[335185039,1723948236144,-150.0,0.00010892,2]
[335185040,1723948236153,-150.0,0.00010895,2]
[335185041,1723948236162,-150.0,0.00010897,2]
[335185042,1723948236171,-348.41020976,0.00010898,2]
[335185043,1723948236181,-167.9088,0.00010898,2]
[335185044,1723948236190,-150.0,0.00010899,2]
[335185045,1723948236199,-175.46649454,0.00010899,2]
[335185046,1723948236208,-175.46649454,0.00010899,2]
[335185047,1723948236218,-279.67320542,0.00010899,2]
[335185048,1723948236227,-197.88631492,0.00010899,2]
[335185049,1723948236237,-594.29,0.00010899,2]
[335185050,1723948236246,-500.0,0.00010899,2]
[335185051,1723948236255,-7500.0,0.000109,2]
[335185052,1723948236264,-949.6038,0.000109,2]
[335185053,1723948236274,-34048.30872252,0.000109,2]
[335185054,1723948236322,-1192.8949193,0.000109,2]
[335185055,1723948236335,-7062.90663695,0.000109,2]
[335185056,1723948236347,-2967.87,0.000109,2]
[335185057,1723948236374,-295.44814184,0.00010805,2]
[335185058,1723948236715,283.01,9.222e-05,2]
[335185059,1723948238463,-326.45,0.00010805,2]
[335185061,1723948238475,-318.37385816,0.00010805,2]
[335185063,1723948238484,-466.26797022,0.000109,2]
[335185064,1723948238496,-4359.03,0.000109,2]
[335185065,1723948238507,-719.45,0.000109,2]
[335185066,1723948238519,-2510.72,0.000109,2]
[335185073,1723948238780,-500.0,0.000109,2]
[335185075,1723948238791,-443.13092382,0.000109,2]
[335185077,1723948238803,-887.5,0.000109,2]
[335185079,1723948238813,-717.96206054,0.000109,2]
[335185081,1723948238836,-26154.12236665,0.000109,2]
[335185082,1723948238845,-175.46649454,0.000109,2]
[335185083,1723948238855,-1098.0,0.000109,2]
[335185084,1723948238864,-297.93900812,0.000109,2]
[335185085,1723948238874,-150.0,0.00010901,2]
[335185086,1723948238887,-150.0,0.00010903,2]
[335185087,1723948238896,-150.0,0.00010905,2]
[335185088,1723948238905,-150.0,0.00010907,2]
[335185089,1723948238914,-348.41020976,0.00010909,2]
[335185091,1723948238923,-150.0,0.0001091,2]
[335185092,1723948238933,-150.0,0.00010912,2]
[335185093,1723948238942,-150.0,0.00010912,2]
[335185094,1723948238951,-150.0,0.00010915,2]
[335185095,1723948238961,-150.0,0.00010918,2]
[335185096,1723948238971,-348.41020976,0.0001092,2]
[335185097,1723948238982,-150.0,0.00010925,2]
[335185098,1723948238992,-150.0,0.00010926,2]
[335185099,1723948239001,-150.0,0.00010927,2]
[335185100,1723948239010,-150.0,0.00010927,2]
[335185101,1723948239020,-150.0,0.00010929,2]
[335185102,1723948239031,-150.0,0.0001093,2]
[335185103,1723948239044,-348.41020976,0.00010931,2]
[335185104,1723948239054,-150.0,0.00010931,2]
[335185105,1723948239064,-150.0,0.00010936,2]
[335185106,1723948239074,-150.0,0.00010937,2]
[335185107,1723948239083,-150.0,0.0001094,2]
[335185108,1723948239093,-150.0,0.00010942,2]
[335185109,1723948239102,-348.41020976,0.00010942,2]
[335185110,1723948239111,-150.0,0.00010943,2]
[335185111,1723948239123,-150.0,0.00010945,2]
[335185112,1723948239134,-150.0,0.00010946,2]
[335185113,1723948239144,-150.0,0.00010947,2]
[335185114,1723948239153,-633.48349885,0.00010948,2]
[335185115,1723948239162,-150.0,0.00010948,2]
[335185116,1723948239172,-283.03788156,0.00010948,2]
[335185117,1723948239181,-150.0,0.00010949,2]
[335185118,1723948239190,-180.56580101,0.00010949,2]
[335185119,1723948239200,-348.41020976,0.00010953,2]
[335185120,1723948239211,-150.0,0.00010954,2]
[335185121,1723948239222,-150.0,0.00010956,2]
[335185122,1723948239232,-150.0,0.00010957,2]
[335185123,1723948239243,-150.0,0.00010958,2]
[335185124,1723948239253,-270.0,0.00010959,2]
[335185125,1723948239262,-250.0,0.00010959,2]
[335185126,1723948239272,-150.0,0.00010959,2]
[335185127,1723948239281,-150.0,0.0001096,2]
[335185128,1723948239291,-150.0,0.00010961,2]
[335185129,1723948239300,-150.0,0.00010962,2]
[335185130,1723948239310,-348.41020976,0.00010964,2]
[335185131,1723948239320,-150.0,0.00010965,2]
[335185132,1723948239331,-150.0,0.00010969,2]
[335185133,1723948239341,-150.0,0.00010969,2]
[335185134,1723948239351,-150.0,0.00010971,2]
[335185135,1723948239361,-150.0,0.00010972,2]
[335185136,1723948239371,-188.937186,0.00010973,2]
[335185137,1723948239381,-200.0,0.00010973,2]
[335185138,1723948239391,-150.0,0.00010975,2]
[335185139,1723948239400,-348.41020976,0.00010975,2]
[335185140,1723948239410,-150.0,0.00010977,2]
[335185141,1723948239420,-150.0,0.00010978,2]
[335185142,1723948239430,-150.0,0.00010981,2]
[335185143,1723948239439,-150.0,0.00010986,2]
[335185144,1723948239448,-348.41020976,0.00010986,2]
[335185145,1723948239457,-268.31212976,0.00010986,2]
[335185146,1723948239467,-243.71115593,0.00010986,2]
[335185147,1723948239476,-150.45990325,0.00010986,2]
[335185148,1723948239485,-213.38086472,0.00010986,2]
[335185149,1723948239496,-150.42722782,0.00010986,2]
[335185150,1723948239505,-150.51249227,0.00010986,2]
[335185151,1723948239515,-253.23125767,0.00010986,2]
[335185152,1723948239526,-153.04706288,0.00010986,2]
[335185153,1723948239536,-158.53233931,0.00010986,2]
[335185154,1723948239547,-221.64508304,0.00010986,2]
[335185155,1723948239557,-150.53531493,0.00010986,2]
[335185156,1723948239566,-150.0,0.00010987,2]
[335185157,1723948239575,-1076.0,0.00010987,2]
[335185158,1723948239585,-150.0,0.00010993,2]
[335185159,1723948239595,-19013.4428837,0.00010994,2]
[335185160,1723948239607,-3203.2594842,0.00010994,2]
[335185161,1723948239617,-1343.6269476,0.00010994,2]
[335185162,1723948239627,-282.18345993,0.00010997,2]
[335185163,1723948239644,-190.37726154,0.00010998,2]
[335185164,1723948239653,-578.10663931,0.00010999,2]
[335185165,1723948239692,-1311.78397222,0.00010999,2]
[335185166,1723948239702,-500.0,0.00010999,2]
[335185167,1723948239711,-326.99,0.00010999,2]
[335185168,1723948239720,-680.0,0.00011,2]
[335185169,1723948239730,-491928.63437416,0.00011,2]
[335185170,1723948239739,-1697526.01736681,0.00011,2]
[335185171,1723948239751,-655.6964493,0.00011,2]
[335185172,1723948239761,-1664.7,0.00011,2]
[335185173,1723948239772,-666.4,0.00011,2]
[335185174,1723948239783,-52887.14992887,0.00011,2]
[335185175,1723948239793,-300.001004,0.00011,2]
[335185176,1723948239804,-1100.67125844,0.00011,2]
[335185177,1723948239815,-542.99403541,0.00011,2]
[335185178,1723948239827,-287.81139421,0.00011,2]
[335185180,1723948240622,-664.405,0.00010805,2]
[335185181,1723948240634,-459.61577438,0.00010999,2]
[335185182,1723948240646,-40.38422562,0.00010999,2]
[335185183,1723948240656,-4567.68820654,0.00011,2]
[335185184,1723948240667,-644.08472678,0.00011,2]
[335185185,1723948240755,-107040.2036493,0.00011,2]
[335185186,1723948240766,-1638.7926743,0.00011,2]
[335185187,1723948240888,-500.0,0.00010999,2]
[335185188,1723948240897,-10884.66755912,0.00011,2]
[335185189,1723948240908,-1729.84999999,0.00011,2]
[335185190,1723948240919,-376.955934,0.00011,2]
[335185191,1723948241023,-111742.50435818,0.00011,2]
[335185192,1723948241035,-578.60900341,0.00011,2]
[335185193,1723948241047,-2926.4020911,0.00011,2]
[335185194,1723948241058,-7701.58319048,0.00011,2]
[335185195,1723948241069,-6102.1638032,0.00011,2]
[335185196,1723948241082,-418.0170567,0.00011,2]
[335185206,1723948243514,-500.0,0.00010999,2]
[335185209,1723948243523,-248.63230573,0.00010999,2]
[335185211,1723948243535,-251.36769427,0.00010999,2]
[335185213,1723948243544,-461.03905878,0.00010999,2]
[335185215,1723948243554,-2.96319077,0.00011,2]
[335185221,1723948243639,-1027.282,0.00010805,2]
[335185222,1723948243649,-227.78167634,0.00011,2]
[335185223,1723948243660,-653.44587086,0.00011,2]
[335185224,1723948243671,-286.93626806,0.00011,2]
[335185225,1723948243683,-323.00504372,0.00011,2]
[335185226,1723948243694,-3611.29115705,0.00011,2]
[335185227,1723948243705,-931.13278959,0.00011,2]
[335185228,1723948243717,-1570.55517767,0.00011,2]
[335185229,1723948243728,-831.48450349,0.00011,2]
[335185230,1723948243740,-1599.08934919,0.00011,2]
[335185231,1723948243752,-873.04153788,0.00011,2]
[335185232,1723948243763,-985.07438389,0.00011,2]
[335185233,1723948243774,-455.37695136,0.00011,2]
[335185235,1723948244604,-427.18428536,0.00011,2]
[335185236,1723948244616,-537.88,0.00011,2]
[335185237,1723948244626,-768.44720034,0.00011,2]
[335185238,1723948244638,-584.30000011,0.00011,2]
[335185239,1723948244649,-1003340.38455846,0.00011,2]
[335185240,1723948244660,-9723.75219398,0.00011,2]
[335185241,1723948244671,-2978.44655774,0.00011,2]
[335185242,1723948246599,-195.2045336,0.00010999,2]
[335185243,1723948246609,-609.0,0.00011,2]
[335185244,1723948246619,-777.88502676,0.00011,2]
[335185245,1723948246630,-1421.4756318,0.00011,2]
[335185246,1723948246641,-587.1863664,0.00011,2]
[335185247,1723948246653,-14626.74,0.00011,2]
[335185248,1723948246664,-29900.94388131,0.00011,2]
[335185249,1723948246676,-506.28464956,0.00011,2]
[335185250,1723948246687,-430.18684934,0.00011,2]
[335185251,1723948246698,-8388.26784103,0.00011,2]
[335185252,1723948246709,-1295.87497203,0.00011,2]
[335185253,1723948246735,-5143.26,0.00011,2]
[335185254,1723948246747,-21899.18760754,0.00011,2]
[335185255,1723948246758,-2353.21410219,0.00011,2]